Cogmind - Beta 16.1 @@@ ROGUE MODE // 2026.01.07 @ 00:52:05 Player: C0-2MO Result: Destroyed 0b10! Performance ------------- Evolutions (9) 4500 Regions Visited (23) 4600 Robots Destroyed (122) 610 Value Destroyed (5374) 5374 Prototype IDs (385) 7700 Alien Tech Used (12) 2400 Bonus (54042) 54042 TOTAL SCORE: 79226 Bonus ------- Triggered Max Security 2000 High Alert Combat Kills 1255 Follower Combat Kills 2687 Hunted by Unchained 500 Forged Quantum Companion 2000 Network Hubs Disabled 200 Registered with UFD 300 Met Optimus in HQ 500 Built Enhanced Grunts 300 A7 Reached Mainframe 300 Met R17 at Cetus 500 Found Hidden Lab 3000 Used Core Reset Matrix 3000 Met R17 at Research 2000 Met Sigix 2000 Integrated Exoskeleton 5000 Escaped with Sigix 5000 Destroyed MAIN.C Guards 500 Met MAIN.C 5000 Destroyed MAIN.C Shell 5000 Destroyed MAIN.C 10000 Win 3000 Cogmind --------- Core Integrity 124/1600 Matter 300/300 Energy 448/450 System Corruption 0% Temperature Cool (0) Movement Walking (30) Location Tau Ceti IV Orbit Parts ------- > --- POWER (1) -------- Enhanced Fission Core > --- PROPULSION (3) --- Sigix Exoskeleton > --- UTILITY (5) ------ Large Storage Unit Experimental Reaction Control System Graphene Brace Advanced Shield Generator Spacefold Activator > --- WEAPON (2) ------- Nanosword Superquantum Companion > --- INVENTORY (15) --- Improved Fusion Compressor Advanced Energy Well (500) Advanced Gravity Neutralizer Microactuators Stasis Canceller Improved Cloaking Device Improved System Restoration Module High-powered Transdimensional Reconstructor Sigix Shearcannon Sigix Containment Pod Peak State ------------ > --- POWER ------------ Enhanced Fission Core > --- PROPULSION ------- Sigix Exoskeleton > --- UTILITY ---------- Large Storage Unit Experimental Core Analyzer Advanced Shield Generator Advanced Corruption Screen Spacefold Activator > --- WEAPON ----------- Nanosword Superquantum Companion > --- INVENTORY -------- Improved Fusion Compressor Advanced Energy Well Advanced Gravity Neutralizer Microactuators Stasis Canceller Experimental Reaction Control System Improved Cloaking Device Graphene Brace Improved System Restoration Module High-powered Transdimensional Reconstructor Sigix Shearcannon Sigix Containment Pod [Rating: 242] Favorites ----------- Power Enhanced Fission Core Engine Ion Engine Power Core Enhanced Fission Core Reactor Compact Particle Reactor Propulsion Cooled Field Propulsion Drive Treads Light Treads Leg Sigix Exoskeleton Wheel Compact Wheel Hover Unit Linear Gravjet Flight Unit Cooled Field Propulsion Drive Utility Large Storage Unit Device Experimental Heat Sink Storage Large Storage Unit Processor Enhanced Optical Array Hackware Makeshift Hacking Suite Protection Medium Regenerative Plating Artifact Spacefold Activator Weapon Companion Sword Energy Gun Medium Laser Energy Cannon Subdweller Beam Cannon Ballistic Gun Light Assault Rifle Launcher Rocket Launcher Special Weapon Improved Plasma Cutter Impact Weapon Makeshift Hammer Slashing Weapon Companion Sword Piercing Weapon Enhanced Force Lance Special Melee Weapon Improved Datajack Build | -11 -10 -10 -7 -7 -5 -5 -5 -5 -5 -5 -5 -4 -4 -4 -4 -4 -3 -3 -2 -2 -2 -1 -1 ------- Run | Yrd Mat Sub Rec Scr Fac Was Fac Ext Cet Arc Hub Fac Was Fac Arm Lab Res Tes Res Qua Sec Acc Com Slots Evolved 18 | . . . . . 10 . . . . . . 2 . . . . 2 . 2 . . 2 . Power 1 | . . . . . 1 . . . . . . . . . . . . . . . . . . Propulsion 6 | . . . . . 6 . . . . . . . . . . . . . . . . . . Utility 11 | . . . . . 3 . . . . . . 2 . . . . 2 . 2 . . 2 . Weapon . | . . . . . . . . . . . . . . . . . . . . . . . . Parts Attached 138 | 7 10 8 3 4 16 1 17 9 6 . 2 7 . 11 . 2 10 6 1 2 4 7 5 Power 15 | 1 1 . . 1 1 . 2 3 2 . . 2 . . . . 2 . . . . . . Engine 5 | 1 1 . . 1 . . . 2 . . . . . . . . . . . . . . . Core 7 | . . . . . 1 . 2 1 1 . . 2 . . . . . . . . . . . Reactor 3 | . . . . . . . . . 1 . . . . . . . 2 . . . . . . Propulsion 33 | 2 4 . 1 1 7 1 3 3 . . . 2 . 1 . . 4 4 . . . . . Treads 2 | 1 1 . . . . . . . . . . . . . . . . . . . . . . Leg 1 | . . . . . . . . . . . . . . . . . . 1 . . . . . Wheel 3 | 1 1 . . 1 . . . . . . . . . . . . . . . . . . . Hover 3 | . . . . . 3 . . . . . . . . . . . . . . . . . . Flight 24 | . 2 . 1 . 4 1 3 3 . . . 2 . 1 . . 4 3 . . . . . Utility 67 | 2 2 . 2 1 8 . 12 2 3 . 1 2 . 9 . 1 4 2 1 2 4 5 4 Device 33 | 1 1 . . . 3 . 10 . 1 . . 1 . 6 . . 2 2 1 . 3 2 . Storage 6 | 1 1 . . 1 . . 1 . 1 . . . . . . . . . . . . 1 . Processor 12 | . . . 1 . 1 . 1 1 . . . 1 . 2 . 1 1 . . . . 2 1 Hackware 12 | . . . 1 . 3 . . . . . 1 . . 1 . . 1 . . 2 . . 3 Protection 3 | . . . . . 1 . . 1 1 . . . . . . . . . . . . . . Artifact 1 | . . . . . . . . . . . . . . . . . . . . . 1 . . Weapon 23 | 2 3 8 . 1 . . . 1 1 . 1 1 . 1 . 1 . . . . . 2 1 Energy Gun 6 | 1 2 2 . . . . . . . . . . . . . 1 . . . . . . . Energy Cannon 2 | . . 2 . . . . . . . . . . . . . . . . . . . . . Ballistic Gun 3 | 1 . 1 . . . . . . 1 . . . . . . . . . . . . . . Ballistic Cannon . | . . . . . . . . . . . . . . . . . . . . . . . . Launcher 1 | . . 1 . . . . . . . . . . . . . . . . . . . . . Special Weapon 2 | . . . . . . . . 1 . . 1 . . . . . . . . . . . . Impact Weapon 2 | . 1 1 . . . . . . . . . . . . . . . . . . . . . Slashing Weapon 3 | . . . . 1 . . . . . . . . . . . . . . . . . 1 1 Piercing Weapon 2 | . . 1 . . . . . . . . . . . . . . . . . . . 1 . Special Melee Weapon 2 | . . . . . . . . . . . . 1 . 1 . . . . . . . . . Unidentified Prototypes 22 | . . . . 1 1 1 3 . 5 . . 2 . 1 . 4 . . . . 1 2 1 Parts Lost 22 | . . 3 . . 2 . . 4 . 1 . 1 . 2 . . 6 . . 1 1 . 1 Power 4 | . . . . . . . . 1 . . . . . . . . 3 . . . . . . Propulsion 11 | . . 2 . . 2 . . 3 . . . . . . . . 3 . . 1 . . . Utility 6 | . . . . . . . . . . 1 . 1 . 2 . . . . . . 1 . 1 Weapon 1 | . . 1 . . . . . . . . . . . . . . . . . . . . . Highest Loss Streak 3 | . . 2 . . 2 . . 2 . 1 . 1 . 2 . . 3 . . 1 1 . 1 To Critical Strikes 1 | . . . . . . . . 1 . . . . . . . . . . . . . . . Average Backups 10 | 3 6 10 2 7 4 4 7 13 14 15 14 14 14 13 13 9 11 13 15 12 11 9 11 Power . | . 1 . . 1 1 1 1 1 1 1 1 1 1 1 1 1 . . . . 1 1 1 Propulsion 1 | 2 1 . 1 2 . . . 1 3 3 3 3 4 3 3 3 1 . 1 . . . . Utility 5 | . . 2 . 2 1 1 3 9 9 9 8 6 6 8 8 5 7 10 11 8 6 6 8 Weapon 1 | . 3 6 . . . . . . . 1 1 1 1 . . . . 1 2 1 1 1 1 Tool/Special . | . . . . . . . . . . . . . . . . . . . . . . . . Unused Backups 35 | . 3 6 1 1 1 . 2 . 4 . . 1 . 3 . 1 2 . . 3 2 . 5 Power 3 | . . 1 . . . . 1 . . . . . . . . . . . . . . . 1 Propulsion 7 | . 1 . 1 . . . . . . . . 1 . 3 . . 1 . . . . . . Utility 13 | . . 3 . 1 . . . . 3 . . . . . . . 1 . . 2 1 . 2 Weapon 9 | . 2 2 . . . . . . 1 . . . . . . 1 . . . 1 1 . 1 Tool/Special 3 | . . . . . 1 . 1 . . . . . . . . . . . . . . . 1 Average Slot Usage (%) 77 | . 95 81 48 71 64 79 79 75 75 71 74 76 76 75 75 74 78 85 80 86 75 73 81 Engine 3 | . 13 13 . 1 5 5 . . . . . . . . . . . . . . . . . Core 4 | . . . . . 4 5 9 9 9 10 10 4 4 4 5 4 4 4 4 4 6 9 9 Reactor 1 | . . . . . . . . . . . . 3 4 4 5 4 2 4 4 4 2 . . Treads 2 | . 13 12 . . . . . . . . . . . . . . . . . . . . . Wheel 2 | . 13 2 . 13 . . . . . . . . . . . . . . . . . . . Flight 13 | . . . 7 14 14 15 22 20 20 20 20 18 19 19 20 19 22 26 25 24 12 . . Device 12 | . 12 12 . . 7 15 14 11 12 6 5 12 14 14 15 14 16 18 17 19 18 30 14 Storage 6 | . 13 13 . 10 2 . 1 5 5 5 5 4 4 4 5 4 4 4 4 4 7 9 9 Processor 7 | . . . 13 3 4 5 8 10 10 10 10 9 9 12 10 10 13 13 12 12 6 4 12 Hackware 8 | . . . 13 14 12 15 11 10 10 10 14 11 9 9 10 9 10 9 8 11 6 . 8 Protection 1 | . . . . . 4 5 3 3 2 5 5 4 4 . . . . . . . . . . Energy Gun 2 | . 20 6 . . . . . . . . . . . . . . . . . . . . . Energy Cannon 1 | . . 10 . . . . . . . . . . . . . . . . . . . . . Impact Weapon 2 | . 3 5 14 7 . . . . . . . . . . . . . . . . . . . Slashing Weapon 4 | . . . . 7 5 5 5 5 5 5 5 4 4 4 5 4 4 4 4 4 6 9 16 Peak Build Rating 242 | 7 11 18 18 27 102 106 112 117 125 118 125 142 142 142 136 143 162 149 156 168 207 241 242 Average Rating 95 | 5 8 12 15 20 86 102 107 111 114 113 119 135 142 135 133 132 142 145 151 164 187 224 234 On Entrance 108 | . 7 8 7 18 27 102 103 112 113 118 113 119 142 142 136 134 143 138 149 156 168 203 235 Avg Prop Armor Cover (%) 9 | 19 14 13 . 10 13 6 2 . . . . . . . . . . . . . . . . Naked Turns 9 | . . 9 . . . . . . . . . . . . . . . . . . . . . Heaviest Build 60 | 14 29 38 3 28 38 20 42 47 47 47 46 60 59 59 53 52 56 50 51 51 52 46 46 Greatest Support 71 | 16 20 20 6 10 44 36 50 50 63 47 47 68 68 68 53 53 62 61 61 67 71 70 70 Greatest Overweight (x) 2 | . 1 2 . 2 . 2 . 1 . . . . . 1 . . . . . . . . . Average Overweight (x) . | . . . . 1 . . . . . . . . . . . . . . . . . . . Largest Inventory Capacity 15 | 8 15 15 5 15 15 5 15 15 15 15 15 15 15 15 15 15 15 15 15 15 15 15 15 Average Capacity 12 | 7 8 14 5 12 9 5 8 15 15 15 15 15 15 15 15 15 15 15 15 15 14 15 15 Most Carried 15 | 6 8 15 5 15 11 5 12 15 15 15 15 15 15 15 15 14 15 15 15 15 15 15 15 Average Carried 11 | 4 6 11 4 10 4 4 7 13 14 15 14 14 15 14 14 10 12 13 15 14 13 12 14 Final Capacity 15 | 8 15 5 5 15 5 5 15 15 15 15 15 15 15 15 15 15 15 15 15 15 15 15 15 Final Carried 15 | 6 6 5 5 15 4 5 12 15 15 15 15 15 15 14 15 14 12 15 15 14 14 15 12 Class Distribution -------------------- 36% | Mutant 20% | Hacker-Sprinter 14% | Hacker-Ninja 12% | Hacker-Scout 8% | Alien-Sigix 3% | Commander-Sprinter Dominant Class ---------------- Mutant | -10/Materials Mutant | -10/Subcaves Mutant | -7/Recycling Mutant | -7/Scraptown Derelict-Mutant | -5/Factory Hacker-Sprinter | -5/Waste Hacker-Sprinter | -5/Factory Hacker-Sprinter | -5/Extension Commander-Sprinter | -5/Cetus Hacker-Sprinter | -5/Archives Hacker-Sprinter | -5/Hub_04(d) Hacker-Sprinter | -4/Factory Hacker-Sprinter | -4/Waste Hacker-Scout | -4/Factory Hacker-Scout | -4/Armory Hacker-Scout | -4/Lab Hacker-Ninja | -3/Research Hacker-Ninja | -3/Testing Hacker-Ninja | -2/Research Hacker-Ninja | -2/Quarantine Hacker-Ninja | -2/Section 7 Alien-Sigix | -1/Access Alien-Sigix | -1/Command Resources | -11 -10 -10 -7 -7 -5 -5 -5 -5 -5 -5 -5 -4 -4 -4 -4 -4 -3 -3 -2 -2 -2 -1 -1 ----------- Run | Yrd Mat Sub Rec Scr Fac Was Fac Ext Cet Arc Hub Fac Was Fac Arm Lab Res Tes Res Qua Sec Acc Com Matter Collected 2791 | 258 188 366 30 40 131 . 235 135 80 . 10 120 . 80 205 . 254 120 . 49 170 136 184 Remotely . | . . . . . . . . . . . . . . . . . . . . . . . . Salvage Created 6799 | 135 594 299 . . 131 . 336 959 21 274 110 347 . 121 382 . 530 261 80 60 192 356 1611 Parts 298 | 11 29 14 . . 11 . 13 29 1 23 7 25 . 6 19 . 13 7 4 3 12 24 47 Haulers Intercepted 7 | . 1 . . . . . 1 . . . . 1 . . . . 3 . 1 . . . . Recyclers Shooed 1 | . . . . . 1 . . . . . . . . . . . . . . . . . . Parts Field Recycled . | . . . . . . . . . . . . . . . . . . . . . . . . Retrieved Matter . | . . . . . . . . . . . . . . . . . . . . . . . . Parts Self-Destructed 10 | . . 10 . . . . . . . . . . . . . . . . . . . . . Prevented . | . . . . . . . . . . . . . . . . . . . . . . . . Parts Restored . | . . . . . . . . . . . . . . . . . . . . . . . . Kills | -11 -10 -10 -7 -7 -5 -5 -5 -5 -5 -5 -5 -4 -4 -4 -4 -4 -3 -3 -2 -2 -2 -1 -1 ------- Run | Yrd Mat Sub Rec Scr Fac Was Fac Ext Cet Arc Hub Fac Was Fac Arm Lab Res Tes Res Qua Sec Acc Com Combat Hostiles Destroyed 64 | . 12 6 . . 1 . 2 8 . 1 1 2 . . 7 . 1 . . . 1 8 14 Melee 39 | . 1 . . . 1 . 2 8 . 1 1 2 . . 7 . 1 . . . 1 4 10 Guns 12 | . 9 3 . . . . . . . . . . . . . . . . . . . . . Cannons 10 | . . 2 . . . . . . . . . . . . . . . . . . . 4 4 Classes Destroyed 20 | 2 6 1 . . 2 . 1 1 . . . . . . 4 . . . . . 2 1 . Worker 3 | . 1 . . . . . . . . . . 2 . . . . . . . . . . . Builder 4 | . . . . . 1 . . 1 . . 1 . . 1 . . . . . . . . . Tunneler 4 | 3 . . . . . . . . . . . . . . . . . . . . . 1 . Hauler 7 | . 1 . . . . . 1 . . . . 1 . . . . 3 . 1 . . . . Recycler 9 | 1 1 . . . . . 1 2 . . . . . . . . 1 2 . . . . 1 Mechanic 1 | . . . . . . . 1 . . . . . . . . . . . . . . . . Operator 10 | . 1 . . . . . . . . 5 1 2 . . . . . . . 1 . . . Watcher 19 | . 3 . . . 1 . . 3 1 . . 1 . 3 . . 1 1 . 1 1 . 3 Swarmer 17 | . 3 . . . . . 2 1 . . . 1 . . 1 . . . . . . 5 4 Cutter 2 | . . . . . . . . . . . . . . . . . . . . . . 2 . Saboteur 1 | . . . . . . . . . . . . . . . 1 . . . . . . . . Grunt 16 | . 9 . . . . . . 2 . . . . . . 2 . . . . . . . 3 Duelist 1 | . . . . . . . . . . . . . . . 1 . . . . . . . . Researcher 1 | . . . . . . . . . . . . . . . . . . . . . 1 . . Sentry 8 | . . . . . 1 . . 3 . 1 . 1 . . . . . . . . . 1 1 Specialist 1 | . . . . . . . . . . . . . . . 1 . . . . . . . . Hunter 2 | . . . . . . . . . . . . . . . 1 . 1 . . . . . . Programmer 2 | . . . . . . . . 1 . . 1 . . . . . . . . . . . . M Guard 2 | . . . . . . . . . . . . . . . . . . . . . . . 2 Combat Programmer 2 | . . . . . . . . . . . . . . . . . . . . . . . 2 Executioner 1 | . . . . . . . . . . . . . . . . . . . . . 1 . . Subdweller 6 | . . 6 . . . . . . . . . . . . . . . . . . . . . Thug 1 | . . . . . . . . 1 . . . . . . . . . . . . . . . Best Kill Streak 7 | 4 3 2 . . 2 . 2 4 1 4 2 2 . 1 5 . 1 2 1 1 1 7 4 Combat Bots Only 7 | . 3 2 . . 1 . 1 3 . 1 1 1 . . 5 . 1 . . . 1 7 4 Max Kills in Single Turn 2 | 1 1 1 . . 1 . 1 1 1 1 1 1 . 1 1 . 1 1 1 1 1 2 1 Gunslinging . | . . . . . . . . . . . . . . . . . . . . . . . . Exploded . | . . . . . . . . . . . . . . . . . . . . . . . . Melee 1 | . 1 . . . 1 . 1 1 . 1 1 1 . . 1 . 1 . . . 1 1 1 Uniques/NPCs Destroyed 2 | . . . . . . . . . . . . . . . . . . . . . . . 2 MAIN.C Shell (-1/Command) MAIN.C (-1/Command) Combat | -11 -10 -10 -7 -7 -5 -5 -5 -5 -5 -5 -5 -4 -4 -4 -4 -4 -3 -3 -2 -2 -2 -1 -1 -------- Run | Yrd Mat Sub Rec Scr Fac Was Fac Ext Cet Arc Hub Fac Was Fac Arm Lab Res Tes Res Qua Sec Acc Com Hostile Shots Fired 870 | . 55 76 . . 18 . 26 46 1 9 13 65 . 11 81 . 70 2 10 6 60 43 278 Missed 334 | . 14 23 . . 10 . 5 23 1 1 3 37 . 7 35 . 34 . 3 4 13 19 102 Deflected 13 | . . . . . . . . . . . . . . . . . . . . . . . 13 Hits 536 | . 41 53 . . 8 . 21 23 . 8 10 28 . 4 46 . 36 2 7 2 47 24 176 Melee 8 | . . . . . . . . . . . . . . . . . . . . . 4 4 . Projectile 528 | . 41 53 . . 8 . 21 23 . 8 10 28 . 4 46 . 36 2 7 2 43 20 176 AOE 21 | . . 1 . . . . . . . . . . . . 1 . . . . . . . 19 Critical Strikes 32 | . . . . . 2 . 2 3 . . . 1 . . 3 . 4 2 . . 3 4 8 Actively Blocked 11 | . . . . . . . . . . . . . . . . . . . . . 3 3 5 Damage Taken 9987 | . 482 455 . . 145 . 307 548 29 219 239 511 . 274 874 . 811 49 220 87 891 427 3419 Core 2742 | . 143 106 . . 18 . 41 55 . 26 . 57 . 7 149 . 112 25 90 27 410 252 1224 Absorbed by Shields 1054 | . . . . . 51 . 111 48 . . . . . . . . . . . . 216 21 607 Redirected to Shielding 11 | . . . . . . . 11 . . . . . . . . . . . . . . . . Ignored by Resistances 4978 | . . . . . . . . . . . . . . . . . . . . . 772 302 3904 Regen/Repaired (Parts) 595 | . 45 . . . . . 12 . . . 44 105 . . 67 . 280 42 . . . . . Core Remaining (%) 59 | 100 . . . . . . . . . . 86 . . . . 81 . 89 . . 53 . 7 Volleys Fired 75 | 13 30 31 . . . . . 1 . . . . . . . . . . . . . . . Largest 2 | 2 2 2 . . . . . 1 . . . . . . . . . . . . . . . Hottest 140 | 70 115 140 . . . . . . . . . . . . . . . . . . . . . Shots Fired 136 | 26 60 49 . . . . . 1 . . . . . . . . . . . . . . . Gun 112 | 26 60 26 . . . . . . . . . . . . . . . . . . . . . Cannon 17 | . . 17 . . . . . . . . . . . . . . . . . . . . . Launcher 6 | . . 6 . . . . . . . . . . . . . . . . . . . . . Special 1 | . . . . . . . . 1 . . . . . . . . . . . . . . . Kinetic 28 | 13 4 11 . . . . . . . . . . . . . . . . . . . . . Thermal 88 | 13 56 19 . . . . . . . . . . . . . . . . . . . . . Explosive 6 | . . 6 . . . . . . . . . . . . . . . . . . . . . Electromagnetic 13 | . . 13 . . . . . . . . . . . . . . . . . . . . . Robot Hit Streak 10 | 4 10 7 . . . . . 1 . . . . . . . . . . . . . . . Robot Miss Streak 4 | 1 4 3 . . . . . . . . . . . . . . . . . . . . . Penetration Max . | . . . . . . . . . . . . . . . . . . . . . . . . Secondary Targets 1 | . 1 . . . . . . . . . . . . . . . . . . . . . . Max Gunslinging Chain 1 | . 1 . . . . . . . . . . . . . . . . . . . . . . Autonomous 15 | . . . . . . . . . . . . . . . . . . . . . . 5 10 Shots Hit Robots 350 | 15 54 28 . . 10 . 15 42 1 13 6 16 . 6 20 . 18 4 4 1 24 10 63 Core Hits 170 | 7 21 12 . . 2 . 7 20 1 8 2 9 . 4 9 . 10 4 2 1 9 6 36 Critical Kills 1 | . . 1 . . . . . . . . . . . . . . . . . . . . . Critical Parts Destroyed 5 | . 5 . . . . . . . . . . . . . . . . . . . . . . Critical Strikes 20 | 1 8 1 . . . . . . . . 2 2 . . . . 2 . 2 . 2 . . Burn 4 | 1 3 . . . . . . . . . . . . . . . . . . . . . . Meltdown 1 | . . 1 . . . . . . . . . . . . . . . . . . . . . Smash 5 | . 5 . . . . . . . . . . . . . . . . . . . . . . Melee Attacks 534 | . 17 13 2 . 14 6 47 58 2 17 17 33 . 37 32 5 35 9 11 19 41 27 92 Impact 32 | . 17 13 2 . . . . . . . . . . . . . . . . . . . . Slashing 501 | . . . . . 14 6 47 58 2 17 17 32 . 37 32 5 35 9 11 19 41 27 92 Piercing . | . . . . . . . . . . . . . . . . . . . . . . . . Sneak Attacks 46 | . 2 . . . 2 . 4 6 . 7 2 5 . 3 1 . 6 3 1 . 2 1 1 Combat Hostiles 6 | . . . . . . . 1 2 . 1 . . . . 1 . 1 . . . . . . Follow-up Attacks 13 | . . . . . . . . 2 . . . . . . . . . . . . 1 2 8 Damage Inflicted 18797 | 157 1125 561 . . 512 . 793 2154 52 1082 354 781 . 370 850 . 1035 265 194 86 951 1365 6110 Guns 1068 | 157 609 302 . . . . . . . . . . . . . . . . . . . . . Cannons 1496 | . . 196 . . . . . . . . . . . . . . . . . . . 444 856 Explosions 63 | . . 63 . . . . . . . . . . . . . . . . . . . . . Melee 16170 | . 516 . . . 512 . 793 2154 52 1082 354 781 . 370 850 . 1035 265 194 86 951 921 5254 Ramming . | . . . . . . . . . . . . . . . . . . . . . . . . Kinetic 177 | 57 36 84 . . . . . . . . . . . . . . . . . . . . . Thermal 885 | 100 573 212 . . . . . . . . . . . . . . . . . . . . . Explosive 63 | . . 63 . . . . . . . . . . . . . . . . . . . . . Electromagnetic 202 | . . 202 . . . . . . . . . . . . . . . . . . . . . Impact 516 | . 516 . . . . . . . . . . . . . . . . . . . . . . Slashing 15654 | . . . . . 512 . 793 2154 52 1082 354 781 . 370 850 . 1035 265 194 86 951 921 5254 Piercing . | . . . . . . . . . . . . . . . . . . . . . . . . Phasic 1300 | . . . . . . . . . . . . . . . . . . . . . . 444 856 Highest Corruption 21 | . 2 2 2 . . 7 7 . . . 2 4 12 21 21 21 3 . . . . . . Average Corruption 6 | . 2 2 2 . . 7 6 . . . 1 4 7 14 21 21 2 . . . . . . Corruption Purged 10 | . . . . . . . 7 . . . . . . . . . 3 . . . . . . Corruption Blocked 2 | . . . . . . . . . . . . . . . . . . . . . . . 2 Effects 130 | . 13 12 9 . . 2 15 . . . . 5 2 22 30 16 4 . . . . . . Message Errors 29 | . 4 1 4 . . . 4 . . . . 2 1 2 6 4 1 . . . . . . Matter Fused 30 | . 3 5 1 . . . 3 . . . . 1 1 4 8 2 2 . . . . . . Heat Flow Errors 18 | . 4 2 3 . . . 1 . . . . . . 4 1 2 1 . . . . . . Energy Discharges 21 | . . 2 . . . 2 3 . . . . . . 7 2 5 . . . . . . . Parts Rejected 1 | . . . . . . . . . . . . . . 1 . . . . . . . . . Parts Fused 3 | . 1 1 . . . . . . . . . . . . . 1 . . . . . . . Data Loss (minor) 12 | . 1 . 1 . . . 2 . . . . 1 . 3 3 1 . . . . . . . Data Loss (major) 4 | . . . . . . . 1 . . . . 1 . . 1 1 . . . . . . . Alerts 3 | . . 1 . . . . 1 . . . . . . 1 . . . . . . . . . Misdirections 9 | . . . . . . . . . . . . . . . 9 . . . . . . . . Overload Shots . | . . . . . . . . . . . . . . . . . . . . . . . . Overflow Damage 1241 | . 307 . . . 58 . 76 51 . 106 77 62 . 53 7 . 58 . . . . 308 78 Projectiles 17 | . . . . . . . . . . . . . . . . . . . . . . . 17 Explosions . | . . . . . . . . . . . . . . . . . . . . . . . . Melee 1224 | . 307 . . . 58 . 76 51 . 106 77 62 . 53 7 . 58 . . . . 308 61 Knockbacks 2 | . 2 . . . . . . . . . . . . . . . . . . . . . . Impact 2 | . 2 . . . . . . . . . . . . . . . . . . . . . . Kinetic . | . . . . . . . . . . . . . . . . . . . . . . . . Secondary . | . . . . . . . . . . . . . . . . . . . . . . . . Self-Inflicted Damage . | . . . . . . . . . . . . . . . . . . . . . . . . Shots . | . . . . . . . . . . . . . . . . . . . . . . . . Rammed . | . . . . . . . . . . . . . . . . . . . . . . . . Targets Rammed . | . . . . . . . . . . . . . . . . . . . . . . . . Kicked . | . . . . . . . . . . . . . . . . . . . . . . . . Crushed . | . . . . . . . . . . . . . . . . . . . . . . . . Highest Temperature 312 | 110 312 251 227 . 20 . 248 . . . . . . 257 216 210 239 . . 24 9 . . Average Temperature 73 | 46 79 120 91 . 11 . 103 . . . . . . 103 126 99 131 . . 12 3 . . Received Heat Transfer 1103 | . 237 183 . . 58 . 63 81 . 27 18 27 . 9 97 . 9 . 27 9 39 . 219 Effects 6 | . 6 . . . . . . . . . . . . . . . . . . . . . . Energy Bleed 3 | . 3 . . . . . . . . . . . . . . . . . . . . . . Interference 3 | . 3 . . . . . . . . . . . . . . . . . . . . . . Siege Activations . | . . . . . . . . . . . . . . . . . . . . . . . . Martial Activations . | . . . . . . . . . . . . . . . . . . . . . . . . Shielding Activations . | . . . . . . . . . . . . . . . . . . . . . . . . Robots Disrupted 4 | . . . . . . . 1 1 . 1 . . . . . . . . . . 1 . . Combat Hostiles 3 | . . . . . . . 1 1 . . . . . . . . . . . . 1 . . Robots Corrupted 4 | . 4 . . . . . . . . . . . . . . . . . . . . . . Combat Hostiles 2 | . 2 . . . . . . . . . . . . . . . . . . . . . . Parts Fried 9 | . 8 1 . . . . . . . . . . . . . . . . . . . . . Impact Corruptions 10 | . 10 . . . . . . . . . . . . . . . . . . . . . . Robots Melted 1 | . . 1 . . . . . . . . . . . . . . . . . . . . . Combat Hostiles 1 | . . 1 . . . . . . . . . . . . . . . . . . . . . Parts Melted 2 | . 1 1 . . . . . . . . . . . . . . . . . . . . . Heat Transferred 2405 | 370 1702 333 . . . . . . . . . . . . . . . . . . . . . Parts Sabotaged . | . . . . . . . . . . . . . . . . . . . . . . . . Parts Stolen . | . . . . . . . . . . . . . . . . . . . . . . . . Parts Stripped . | . . . . . . . . . . . . . . . . . . . . . . . . Power Chain Reactions . | . . . . . . . . . . . . . . . . . . . . . . . . Alert | -11 -10 -10 -7 -7 -5 -5 -5 -5 -5 -5 -5 -4 -4 -4 -4 -4 -3 -3 -2 -2 -2 -1 -1 ------- Run | Yrd Mat Sub Rec Scr Fac Was Fac Ext Cet Arc Hub Fac Was Fac Arm Lab Res Tes Res Qua Sec Acc Com Maximum Alert Level 5 | . . . . . . . 2 1 1 . . 1 . . 3 . . . 1 . 5 5 4 Low Security (%) 65 | 100 100 . 100 . 100 100 50 29 20 100 100 42 100 100 12 . 100 100 61 100 18 . . Level 1 20 | . . . . . . . 35 70 80 . . 57 . . 29 . . . 38 . 41 . . Level 2 3 | . . . . . . . 15 . . . . . . . 44 . . . . . . . . Level 3 6 | . . . . . . . . . . . . . . . 13 . . . . . . 36 86 Level 4 . | . . . . . . . . . . . . . . . . . . . . . . 7 13 Level 5 . | . . . . . . . . . . . . . . . . . . . . . . . . High Security . | . . . . . . . . . . . . . . . . . . . . . . . . Max Security 3 | . . . . . . . . . . . . . . . . . . . . . 39 56 . Peak Influence 1830 | 15 111 . 84 . 30 2 436 335 289 160 154 382 126 172 919 . 168 69 211 145 1744 1830 1198 Initial 1171 | . 3 . . . . . . 140 142 79 48 74 126 81 71 . . 9 13 110 19 1100 1171 Average 242 | 2 42 . 23 . 7 . 202 224 222 130 105 209 123 123 475 . 60 41 136 97 784 1467 979 Influence Increases 8377 | 20 400 150 174 . 57 4 699 895 356 189 225 638 . 342 1152 . 383 125 244 189 501 298 1336 Destroy 0b10 Robot/C 2760 | . 240 . . . 20 . 40 460 160 80 40 180 . . 480 . 80 . . . 120 180 680 Destroy 0b10 Robot/NC 305 | 20 35 . . . 10 . 15 35 10 25 10 30 . 20 . . 30 15 5 10 5 5 25 Destroy Leader 508 | . 58 . . . 12 . 12 46 . . 10 44 . 6 90 . 38 2 2 2 . 40 146 Allied During Kill 835 | . . . . . . . . 201 135 80 8 60 . . 66 . 10 . . . 21 10 244 Successful Hack 666 | . 33 . 52 . . . 119 45 7 . 39 43 . 69 23 . 114 33 7 54 18 . 10 Select Force Hacks 290 | . 30 . 120 . . . 30 . . . . . . . 50 . 60 . . . . . . Disable Machine 405 | . . . . . . . 15 15 . . 15 . . 30 105 . . 75 . 60 75 . 15 Anti-Garrison Action 200 | . . . . . . . . . . . . . . . . . . . 200 . . . . Destroy Structure 598 | . 4 . 2 . . 4 48 18 44 4 28 56 . 52 158 . 36 . 15 33 12 33 51 Partial Spotted 360 | . . . . . 15 . 45 15 . . 15 45 . 45 45 . 15 . 15 30 75 . . Lose Combat Pursuer 1350 | . . 150 . . . . 375 60 . . 60 180 . 120 135 . . . . . 75 30 165 Miscellaneous 100 | . . . . . . . . . . . . . . . . . . . . . 100 . . Influence Decreases 9240 | 15 353 202 174 . 55 6 412 927 413 249 210 431 244 311 380 919 367 117 71 351 136 838 2059 Entered New Map 3320 | . 2 26 . . . 2 . 147 113 119 90 79 234 35 76 919 . 7 11 87 16 698 659 Time Decay 3454 | 15 351 176 174 . 50 4 262 372 180 60 60 222 10 246 214 . 314 100 60 254 100 60 170 Search Patrol Dispatched 100 | . . . . . . . 100 . . . . . . . . . . . . . . . . Lost Part 148 | . . . . . 5 . . 40 . 10 . 10 . 20 . . 33 . . 10 10 . 10 Lost Ally 1950 | . . . . . . . 50 100 120 60 60 120 . 10 90 . 20 10 . . 10 80 1220 Purge Threat 268 | . . . . . . . . 268 . . . . . . . . . . . . . . . Squads Dispatched 88 | . 2 . . . . . 9 . . . 1 12 . 5 8 . 8 1 3 2 15 17 5 Investigation 38 | . 2 . . . . . 8 . . . . 9 . 3 4 . 6 . 2 1 2 . 1 Extermination 14 | . . . . . . . 1 . . . . 2 . 2 2 . 1 1 1 1 1 1 1 Reinforcement 10 | . . . . . . . . . . . 1 1 . . 2 . 1 . . . . 3 2 Assault 26 | . . . . . . . . . . . . . . . . . . . . . 12 13 1 Garrison . | . . . . . . . . . . . . . . . . . . . . . . . . Intercept . | . . . . . . . . . . . . . . . . . . . . . . . . Searches Triggered 1 | . . . . . . . 1 . . . . . . . . . . . . . . . . Construction Impeded . | . . . . . . . . . . . . . . . . . . . . . . . . Haulers Reinforced 1 | . . . . . . . . . . . . . . . . . 1 . . . . . . Active Scanning Responses . | . . . . . . . . . . . . . . . . . . . . . . . . Cargo Convoy Interrupts . | . . . . . . . . . . . . . . . . . . . . . . . . Stealth | -11 -10 -10 -7 -7 -5 -5 -5 -5 -5 -5 -5 -4 -4 -4 -4 -4 -3 -3 -2 -2 -2 -1 -1 --------- Run | Yrd Mat Sub Rec Scr Fac Was Fac Ext Cet Arc Hub Fac Was Fac Arm Lab Res Tes Res Qua Sec Acc Com Distress Signals 37 | . 1 . . . . . 4 2 2 . 2 2 . 1 1 . 4 . 1 . . 2 15 Communications Jammed 19 | . . . . . . . . . . . . . . . . . . . . 19 . . . Distress Signals 19 | . . . . . . . . . . . . . . . . . . . . 19 . . . Times Spotted 365 | . 19 18 . . 2 6 34 27 9 7 12 30 5 23 45 . 39 5 5 10 18 9 42 Peak Tracking Total 18 | . 3 2 . . 1 6 9 5 5 3 8 9 5 9 16 . 8 3 3 6 6 7 18 Tactical Retreats 56 | . . 7 . . . . 11 3 . . 2 6 . 4 3 . 9 1 1 3 2 1 3 ECM-based Alert Blocks 38 | . . . . . . . . . . . . . . . . . 28 2 2 6 . . . Traps | -11 -10 -10 -7 -7 -5 -5 -5 -5 -5 -5 -5 -4 -4 -4 -4 -4 -3 -3 -2 -2 -2 -1 -1 ------- Run | Yrd Mat Sub Rec Scr Fac Was Fac Ext Cet Arc Hub Fac Was Fac Arm Lab Res Tes Res Qua Sec Acc Com Traps Triggered 18 | . 1 1 . . 1 . 2 2 . . . 5 . . 2 . . . . . 1 . 3 Indirectly . | . . . . . . . . . . . . . . . . . . . . . . . . Trap Hack Attempts 15 | . . . . . . . . . . . . . . 15 . . . . . . . . . Triggered . | . . . . . . . . . . . . . . . . . . . . . . . . Disarmed 11 | . . . . . . . . 4 . . . 6 . 1 . . . . . . . . . Reprogrammed 5 | . . . . . . . . . . . . . . 5 . . . . . . . . . Reused . | . . . . . . . . . . . . . . . . . . . . . . . . Traps Extracted 5 | . . . . . . . . . . . . . . 5 . . . . . . . . . Installed . | . . . . . . . . . . . . . . . . . . . . . . . . Triggered . | . . . . . . . . . . . . . . . . . . . . . . . . Most Traps Carried 5 | . . . . . . . . . . . . . . 5 5 5 5 5 5 5 . . . Machines | -11 -10 -10 -7 -7 -5 -5 -5 -5 -5 -5 -5 -4 -4 -4 -4 -4 -3 -3 -2 -2 -2 -1 -1 ---------- Run | Yrd Mat Sub Rec Scr Fac Was Fac Ext Cet Arc Hub Fac Was Fac Arm Lab Res Tes Res Qua Sec Acc Com Machines Disabled 34 | . . 3 . . . . 1 3 . . 1 . . 2 7 1 . 5 . 4 6 . 1 Max in Single Turn 1 | . . 1 . . . . 1 1 . . 1 . . 1 . 1 . 1 . 1 1 . 1 Garrison Access 4 | . . . . . . . 1 . . . 1 . . . . . . 1 1 . . . . Network Hub 1 | . . . . . . . . . . . 1 . . . . . . . . . . . . Energy Cycler 1 | . . . . . . . . . . . . . . . 1 . . . . . . . . Machines Repaired . | . . . . . . . . . . . . . . . . . . . . . . . . Machines Dismantled 1 | . . . . . . . . . . . 1 . . . . . . . . . . . . Machines Sabotaged . | . . . . . . . . . . . . . . . . . . . . . . . . Overloaded Fab Kills 6 | . . . . . . . . . . . . . . . 6 . . . . . . . . Hacking | -11 -10 -10 -7 -7 -5 -5 -5 -5 -5 -5 -5 -4 -4 -4 -4 -4 -3 -3 -2 -2 -2 -1 -1 --------- Run | Yrd Mat Sub Rec Scr Fac Was Fac Ext Cet Arc Hub Fac Was Fac Arm Lab Res Tes Res Qua Sec Acc Com Machines Accessed 143 | . 10 1 10 2 . . 21 13 1 . 6 15 . 9 10 . 17 3 4 10 7 . 4 Terminals 94 | . 7 . 6 . . . 11 13 1 . 5 8 . 5 6 . 9 1 2 10 7 . 3 Fabricators 5 | . . . . . . . 2 . . . . . . 1 1 . 1 . . . . . . Repair Stations 9 | . 1 . . . . . 2 . . . . 2 . . 1 . 2 1 . . . . . Recycling Units 21 | . 2 . 4 . . . 2 . . . . 5 . 2 2 . 2 . 1 . . . 1 Scanalyzers 5 | . . . . . . . 3 . . . . . . . . . 2 . . . . . . Garrison Access 6 | . . . . . . . 1 . . . 1 . . 1 . . 1 1 1 . . . . Total Hacks 408 | . 35 1 26 3 . . 72 43 1 . 22 40 . 33 23 . 46 4 7 18 27 . 7 Successful 250 | . 20 1 15 3 . . 42 24 1 . 12 26 . 17 19 . 28 3 3 17 15 . 4 Failed 157 | . 15 . 11 . . . 29 19 . . 10 14 . 16 4 . 18 1 4 1 12 . 3 Catastrophic 20 | . 1 . 4 . . . 1 3 . . 3 . . . . . 3 1 . . 4 . . Database Lockouts 1 | . . . . . . . 1 . . . . . . . . . . . . . . . . Manual 294 | . 30 . 24 . . . 43 25 1 . 18 32 . 26 20 . 30 1 6 15 22 . 1 Terminals 312 | . 26 . 18 . . . 50 43 1 . 21 33 . 22 18 . 26 1 2 18 27 . 6 Fabricators 11 | . . . . . . . 4 . . . . . . 5 1 . 1 . . . . . . Repair Stations 23 | . 4 . . . . . 4 . . . . 2 . . 1 . 10 2 . . . . . Recycling Units 34 | . 5 . 8 . . . 3 . . . . 5 . 3 3 . 3 . 3 . . . 1 Scanalyzers 13 | . . . . . . . 9 . . . . . . . . . 4 . . . . . . Garrison Access 11 | . . . . . . . 2 . . . 1 . . 3 . . 2 1 2 . . . . Terminal Hacks 84 | . 3 1 3 3 . . 13 12 1 . 6 9 . 4 4 . 8 . 1 6 7 . 3 Record 3 | . . . . 1 . . . . . . . . . . . . . . . 2 . . . Part Schematic 7 | . . . . . . . 3 1 . . . 1 . . . . 2 . . . . . . Robot Analysis 2 | . 1 . . . . . 1 . . . . . . . . . . . . . . . . Prototype ID Bank 1 | . . . . . . . . . . . 1 . . . . . . . . . . . . Open Door 9 | . . . . 1 . . . 4 1 . . . . . . . . . . 1 1 . 1 Level Access Points 1 | . . . . . . . . . . . 1 . . . . . . . . . . . . Branch Access Points 5 | . . . . . . . 1 . . . . 1 . 1 . . 1 . 1 . . . . Terminal Index 12 | . 1 . 2 . . . 1 1 . . 1 1 . 1 1 . 1 . . 1 1 . . Fabricator Index 1 | . . . . . . . . . . . . 1 . . . . . . . . . . . Scanalyzer Index 1 | . . . . . . . 1 . . . . . . . . . . . . . . . . Alert Level 1 | . . . . . . . . . . . . . . . . . . . . . 1 . . Unreport Threat 4 | . . . . . . . . 3 . . . . . . . . . . . . 1 . . Locate Traps 6 | . . . . . . . 2 1 . . . 2 . . 1 . . . . . . . . Disarm Traps 2 | . . . . . . . . 1 . . . 1 . . . . . . . . . . . Recall Extermination 1 | . . . . . . . . . . . . . . . . . . . . 1 . . . Registered Components 1 | . . . . . . . . . . . . . . 1 . . . . . . . . . Zone Layout 23 | . 1 . 1 . . . 4 1 . . 3 2 . 1 2 . 4 . . 1 3 . . Proto ID Catalog 2 | . . 1 . 1 . . . . . . . . . . . . . . . . . . . Disengage Seal 2 | . . . . . . . . . . . . . . . . . . . . . . . 2 Fabricator Hacks 4 | . . . . . . . 1 . . . . . . 2 . . 1 . . . . . . Network Status 2 | . . . . . . . 1 . . . . . . . . . 1 . . . . . . Load Schematic 1 | . . . . . . . . . . . . . . 1 . . . . . . . . . Build 1 | . . . . . . . . . . . . . . 1 . . . . . . . . . Repair Station Hacks 12 | . 4 . . . . . 2 . . . . . . . . . 4 2 . . . . . Scan Component 6 | . 2 . . . . . 1 . . . . . . . . . 2 1 . . . . . Repair 6 | . 2 . . . . . 1 . . . . . . . . . 2 1 . . . . . Recycling Unit Hacks 1 | . 1 . . . . . . . . . . . . . . . . . . . . . . Retrieve Components 1 | . 1 . . . . . . . . . . . . . . . . . . . . . . Scanalyzer 4 | . . . . . . . 3 . . . . . . . . . 1 . . . . . . Insert Component 1 | . . . . . . . 1 . . . . . . . . . . . . . . . . Analyze 1 | . . . . . . . 1 . . . . . . . . . . . . . . . . Retrieve Study 2 | . . . . . . . 1 . . . . . . . . . 1 . . . . . . Garrison Access Hacks 3 | . . . . . . . 1 . . . 1 . . . . . . 1 . . . . . Seal Access 3 | . . . . . . . 1 . . . 1 . . . . . . 1 . . . . . Unauthorized Hacks 142 | . 12 . 12 . . . 22 12 . . 5 17 . 11 15 . 14 . 2 11 8 . 1 Terminals 109 | . 10 . 8 . . . 17 12 . . 5 10 . 8 11 . 9 . . 11 8 . . Track 18 | . 1 . 1 . . . 4 1 . . 5 1 . 1 1 . . . . 2 1 . . Assimilate 11 | . 1 . . . . . 3 . . . . . . 2 1 . 1 . . 2 1 . . Botnet 24 | . 2 . 2 . . . 2 4 . . . 3 . 2 3 . 3 . . 2 1 . . Disrupt 3 | . . . . . . . 2 . . . . 1 . . . . . . . . . . . Operators 3 | . 1 . . . . . 1 1 . . . . . . . . . . . . . . . Skim 50 | . 5 . 5 . . . 5 6 . . . 5 . 3 6 . 5 . . 5 5 . . Fabricators 3 | . . . . . . . 1 . . . . . . 1 1 . . . . . . . . Prioritize 1 | . . . . . . . . . . . . . . 1 . . . . . . . . . Overload 1 | . . . . . . . . . . . . . . . 1 . . . . . . . . Recompile 1 | . . . . . . . 1 . . . . . . . . . . . . . . . . Repair Stations 5 | . . . . . . . 1 . . . . 2 . . 1 . 1 . . . . . . Patch 5 | . . . . . . . 1 . . . . 2 . . 1 . 1 . . . . . . Recycling Units 21 | . 2 . 4 . . . 2 . . . . 5 . 2 2 . 2 . 1 . . . 1 Reject 1 | . 1 . . . . . . . . . . . . . . . . . . . . . . Tunnel 5 | . 1 . 4 . . . . . . . . . . . . . . . . . . . . Fedlink 10 | . . . . . . . 2 . . . . 4 . 2 . . 1 . 1 . . . . Scrapoids 1 | . . . . . . . . . . . . 1 . . . . . . . . . . . Scraphulk 4 | . . . . . . . . . . . . . . . 2 . 1 . . . . . 1 Scanalyzers 3 | . . . . . . . 1 . . . . . . . . . 2 . . . . . . Extract 3 | . . . . . . . 1 . . . . . . . . . 2 . . . . . . Garrison Access 1 | . . . . . . . . . . . . . . . . . . . 1 . . . . Jam 1 | . . . . . . . . . . . . . . . . . . . 1 . . . . Data Cores Recovered 3 | . . . . . . . . . . . 1 1 . . . . . . . 1 . . . Used 1 | . . . . . . . . . . . 1 . . . . . . . . . . . . Hacking Detections 77 | . 8 . 8 . . . 17 9 . . 3 7 . 5 1 . 8 1 1 5 3 . 1 Full Trace Events 6 | . 1 . 1 . . . 2 . . . . 1 . 1 . . . . . . . . . Feedback Events 1 | . . . . . . . . . . . . . . 1 . . . . . . . . . Corruption 1 | . . . . . . . . . . . . . . 1 . . . . . . . . . Feedback Blocked . | . . . . . . . . . . . . . . . . . . . . . . . . Robot Schematics Acquired 2 | . . . . . . . . . . . . . . . . . . . . . 2 . . Robots Built . | . . . . . . . . . . . . . . . . . . . . . . . . Authchips . | . . . . . . . . . . . . . . . . . . . . . . . . Time . | . . . . . . . . . . . . . . . . . . . . . . . . Total Robot Build Rating . | . . . . . . . . . . . . . . . . . . . . . . . . Part Schematics Acquired 23 | . . . . . . . 14 1 . . . 1 . . . . 6 . . . 1 . . Parts Built 1 | . . . . . . . . . . . . . . 1 . . . . . . . . . Authchips 1 | . . . . . . . . . . . . . . 1 . . . . . . . . . Time 55 | . . . . . . . . . . . . . . 55 . . . . . . . . . Total Part Build Rating 9 | . . . . . . . . . . . . . . 9 . . . . . . . . . Part Studies Acquired 2 | . . . . . . . 1 . . . . . . . . . 1 . . . . . . Parts Repaired 6 | . 2 . . . . . 1 . . . . . . . . . 2 1 . . . . . Time 184 | . 70 . . . . . 32 . . . . . . . . . 49 33 . . . . . Parts Recycled . | . . . . . . . . . . . . . . . . . . . . . . . . Recycled Matter . | . . . . . . . . . . . . . . . . . . . . . . . . Retrieved Matter . | . . . . . . . . . . . . . . . . . . . . . . . . Retrieved Components 7 | . 7 . . . . . . . . . . . . . . . . . . . . . . Parts Scanalyzed 1 | . . . . . . . 1 . . . . . . . . . . . . . . . . Part Schematics Acquired 1 | . . . . . . . 1 . . . . . . . . . . . . . . . . Parts Damaged . | . . . . . . . . . . . . . . . . . . . . . . . . Bothacking | -11 -10 -10 -7 -7 -5 -5 -5 -5 -5 -5 -5 -4 -4 -4 -4 -4 -3 -3 -2 -2 -2 -1 -1 ------------ Run | Yrd Mat Sub Rec Scr Fac Was Fac Ext Cet Arc Hub Fac Was Fac Arm Lab Res Tes Res Qua Sec Acc Com Used RIF Installer . | . . . . . . . . . . . . . . . . . . . . . . . . Robots Hacked 1 | . . . . . . . . . . . . 1 . . . . . . . . . . . Non-combat 1 | . . . . . . . . . . . . 1 . . . . . . . . . . . Combat . | . . . . . . . . . . . . . . . . . . . . . . . . Robot Hacks Applied 1 | . . . . . . . . . . . . 1 . . . . . . . . . . . find_chute 1 | . . . . . . . . . . . . 1 . . . . . . . . . . . Relay Couplers Released . | . . . . . . . . . . . . . . . . . . . . . . . . Fabnet Peak Effective % . | . . . . . . . . . . . . . . . . . . . . . . . . Robots Rewired 16 | . . . . . . . 1 8 . 1 . 1 . . 4 . . . . . 1 . . Allies Hacked 1 | . . . . . . . . 1 . . . . . . . . . . . . . . . Hacks Repelled . | . . . . . . . . . . . . . . . . . . . . . . . . Allies | -11 -10 -10 -7 -7 -5 -5 -5 -5 -5 -5 -5 -4 -4 -4 -4 -4 -3 -3 -2 -2 -2 -1 -1 -------- Run | Yrd Mat Sub Rec Scr Fac Was Fac Ext Cet Arc Hub Fac Was Fac Arm Lab Res Tes Res Qua Sec Acc Com Total Allies 157 | . . . . . . . 4 14 5 1 . 6 . 2 7 . 2 . . 1 2 32 81 Largest Group 25 | . . . . . . . 4 9 12 6 3 5 . 2 5 . 1 1 . 1 1 5 25 Highest-Rated Group 905 | . . . . . . . 95 394 814 351 288 229 . 71 311 . 139 10 . 45 119 74 905 Highest-Rated Ally 234 | . . . . . . . 49 159 159 96 96 56 . 45 123 . 139 10 . 45 119 15 234 Initial UFD Resources 90 | . . . . . 37 37 37 51 51 51 51 55 70 70 74 64 67 72 76 86 86 90 90 Total Orders 10 | . . . . . . . . 2 1 3 . . . 2 . . 2 . . . . . . STAY 4 | . . . . . . . . 1 1 . . . . 1 . . 1 . . . . . . ROAM 1 | . . . . . . . . . . 1 . . . . . . . . . . . . . FOLLOW 5 | . . . . . . . . 1 . 2 . . . 1 . . 1 . . . . . . Ally Attacks 561 | . . . . . . . 2 104 60 23 8 66 . . 68 . 15 . . . 13 9 193 Total Damage 16484 | . . . . . . . 46 2364 2059 830 131 1295 . . 2342 . 1049 . . . 544 137 5687 Kills 87 | . . . . . . . . 17 9 3 1 7 . . 17 . 4 . . . 4 1 24 Allies Corrupted 1 | . . . . . . . . . . . . . . . . . . . . . . . 1 Allies Melted 1 | . . . . . . . . 1 . . . . . . . . . . . . . . . Intel | -11 -10 -10 -7 -7 -5 -5 -5 -5 -5 -5 -5 -4 -4 -4 -4 -4 -3 -3 -2 -2 -2 -1 -1 ------- Run | Yrd Mat Sub Rec Scr Fac Was Fac Ext Cet Arc Hub Fac Was Fac Arm Lab Res Tes Res Qua Sec Acc Com Active Infowar (turns) 6479 | 5 617 . 672 181 19 81 654 220 320 24 . 406 26 535 445 362 741 205 132 540 168 126 . Optics 3560 | . . . . . . . . . . . . 406 26 535 445 362 741 205 132 540 168 . . Sensors 4109 | . . . . . . . 466 220 320 24 . . . 486 445 362 741 205 132 540 168 . . Structural 3124 | . . . . . 19 81 188 . . . . . . 442 388 346 618 205 132 537 168 . . Seismic 622 | 5 617 . . . . . . . . . . . . . . . . . . . . . . Machine Analysis 853 | . . . 672 181 . . . . . . . . . . . . . . . . . . . Cloaking 285 | . . . . . . . . . . . . . . . . . . . . . 159 126 . Jamming 752 | . . . . . . . . . . . . . . . . . . . 44 540 168 . . ECM 1481 | . . . . . . . . . . . . . . . . . 554 205 132 540 50 . . Robot Analysis Total 2 | . 1 . . . . . 1 . . . . . . . . . . . . . . . . Derelict Logs Recovered 1 | . . 1 . . . . . . . . . . . . . . . . . . . . . Drone Launches . | . . . . . . . . . . . . . . . . . . . . . . . . Drone Recoveries . | . . . . . . . . . . . . . . . . . . . . . . . . Exploration | -11 -10 -10 -7 -7 -5 -5 -5 -5 -5 -5 -5 -4 -4 -4 -4 -4 -3 -3 -2 -2 -2 -1 -1 ------------- Run | Yrd Mat Sub Rec Scr Fac Was Fac Ext Cet Arc Hub Fac Was Fac Arm Lab Res Tes Res Qua Sec Acc Com Turns Passed 10856 | 91 1165 1181 690 825 131 81 660 877 375 139 123 463 26 535 445 362 741 205 132 540 335 284 450 Spaces Moved 14613 | 48 844 580 605 962 174 156 1370 836 377 240 231 980 88 1128 689 225 1459 492 386 767 693 547 736 Core 698 | 19 . 144 535 . . . . . . . . . . . . . . . . . . . . Treads 318 | . 1 317 . . . . . . . . . . . . . . . . . . . . . Legs 1443 | . . . . . . . . . . . . . . . . . . . . . 180 538 725 Wheels 1497 | 29 770 119 . 579 . . . . . . . . . . . . . . . . . . . Hover 44 | . . . . . 37 7 . . . . . . . . . . . . . . . . . Flight 10581 | . 73 . 70 383 137 149 1370 836 377 240 231 980 88 1128 689 225 1459 492 386 767 501 . . Fastest Speed 20 | 50 37 50 40 40 32 32 27 27 28 28 28 28 29 29 31 31 25 25 26 20 25 30 30 Average Speed 42 | 80 96 167 48 83 33 39 27 28 28 28 28 28 29 30 31 31 28 25 26 26 26 30 30 Slowest Speed 240 | 100 160 240 50 110 39 200 32 95 28 28 28 29 29 93 31 31 31 28 26 29 30 30 30 Overloaded Moves 11 | . . . . . . . . . . . . . . . . . . . . 11 . . . Propulsion Burnouts . | . . . . . . . . . . . . . . . . . . . . . . . . Robots Hopped 102 | . . . 1 . . 4 17 18 . 1 3 16 2 14 3 . 16 . 3 1 3 . . Potential Cave-ins 4 | . . . . . . 4 . . . . . . . . . . . . . . . . . Cave-ins Triggered 1 | . . . . . . . . . . . . . . 1 . . . . . . . . . Teleports 2 | . . . . . . . . . . . . . . . . . . . . 1 1 . . Spacefolds 10 | . . . . . . . . . . . . . . . . . . . . . 4 3 3 Exploration Rate (%) 55 | 4 96 43 83 66 6 79 40 78 66 95 37 33 82 35 66 95 47 60 17 84 54 17 37 Regions Visited 23 Branch Regions 13 Pre-discovered Areas 15 | . 1 . 6 1 . . 5 . . . . . . . 1 . 1 . . . . . . Known Exits Taken 14 | . . . . 1 . . 1 1 1 1 1 . . 1 1 1 1 1 1 1 1 . . Unknown Exits Taken 5 | 1 1 1 1 . . . . . . . . . . . . . . . . . . 1 . Scrap Searched 17 | . . 11 . 6 . . . . . . . . . . . . . . . . . . . Spaces Dug 146 | . 4 8 2 . . 6 25 4 . . 9 9 . 27 6 . 10 . 5 11 4 11 5 Terrain Destroyed 173 | . 4 35 2 . . 6 25 4 . . 9 9 . 27 6 . 10 . 5 11 4 11 5 Melee 139 | . 4 1 2 . . 6 25 4 . . 9 9 . 27 6 . 10 . 5 11 4 11 5 Projectile 1 | . . 1 . . . . . . . . . . . . . . . . . . . . . AOE 33 | . . 33 . . . . . . . . . . . . . . . . . . . . . Terrain Rammed . | . . . . . . . . . . . . . . . . . . . . . . . . Walls Destroyed . | . . . . . . . . . . . . . . . . . . . . . . . . Machines Disabled . | . . . . . . . . . . . . . . . . . . . . . . . . Actions | -11 -10 -10 -7 -7 -5 -5 -5 -5 -5 -5 -5 -4 -4 -4 -4 -4 -3 -3 -2 -2 -2 -1 -1 --------- Run | Yrd Mat Sub Rec Scr Fac Was Fac Ext Cet Arc Hub Fac Was Fac Arm Lab Res Tes Res Qua Sec Acc Com Total 18258 | 74 1111 716 994 985 224 162 1562 1369 643 284 257 1105 85 1251 872 510 1718 553 398 1078 771 639 897 Wait 2503 | . 175 61 384 3 14 . 110 370 244 26 5 48 . 55 95 252 210 41 4 275 11 52 68 Move 14381 | 47 843 579 602 961 174 149 1338 804 376 237 224 948 84 1100 683 224 1428 491 380 764 678 540 727 Hop 86 | . . . 1 . . 2 14 13 . 1 3 16 1 13 2 . 14 . 2 1 3 . . Pick Up 107 | 6 12 7 1 13 1 1 10 3 3 . . 3 . 4 1 7 11 1 . 7 11 4 1 Fast Attach 95 | 7 9 6 3 3 8 1 10 4 5 . 1 5 . 4 . 7 5 2 1 1 10 2 1 Attach 52 | . 6 2 . 1 8 1 . 3 . . 2 3 . 3 . 3 7 1 . 2 3 3 4 Detach 17 | . . 3 . . . 1 . 2 2 . 2 1 . 4 . . . . . . 2 . . Swap 84 | . 7 9 . . . . 11 3 3 . . 4 . 8 3 1 2 6 . 2 5 12 8 Drop 108 | 1 12 5 1 4 5 1 17 2 8 . . 8 . 8 . 11 6 2 . 7 5 1 4 Fire 75 | 13 30 31 . . . . . 1 . . . . . . . . . . . . . . . Melee 521 | . 17 13 2 . 14 6 47 56 2 17 17 33 . 37 32 5 35 9 11 19 40 25 84 Ram . | . . . . . . . . . . . . . . . . . . . . . . . . Kick . | . . . . . . . . . . . . . . . . . . . . . . . . Crush . | . . . . . . . . . . . . . . . . . . . . . . . . Escape Stasis 88 | . . . . . . . . 28 . . . 30 . . 30 . . . . . . . . Rewire 123 | . . . . . . . 5 80 . 3 . 6 . . 26 . . . . . 3 . . Trap 15 | . . . . . . . . . . . . . . 15 . . . . . . . . . Miscellaneous 3 | . . . . . . . . . . . 3 . . . . . . . . . . . . Route ------- -11/Scrapyard -10/Materials (discovered 5 exits: [*Mat x3] / [*Min] / *Sub) -10/Subcaves (discovered 3 exits: [*Mat] / *Rec / *Scr) -7/Recycling (discovered 2 exits: *Fac / *Scr) -7/Scraptown (discovered 2 exits: *Fac x2) -5/Factory -5/Waste -5/Factory (discovered 7 exits: Fac x3 / Upp x2 / *Ext x2) -5/Extension (discovered 2 exits: *Fac / *Cet) -5/Cetus (discovered 2 exits: *Fac / *Arc) -5/Archives (discovered 3 exits: *Fac / *Hub x2) -5/Hub_04(d) (discovered 4 exits: *Fac x4) -4/Factory (discovered 4 exits: *Res / Upp x2 / Arm) -4/Waste -4/Factory (discovered 5 exits: *Res x2 / *Upp x2 / *Arm) -4/Armory (discovered 3 exits: Res x2 / *Lab) -4/Lab -3/Research (discovered 4 exits: Res x2 / *Tes x2) -3/Testing -2/Research (discovered 2 exits: *Qua x2) -2/Quarantine (discovered 3 exits: Acc / *Sec / *Frg) -2/Section 7 -1/Access -1/Command (discovered 2 exits: [*Sur x2]) Tau Ceti IV Orbit History --------- Turn | Location | Event 7 | -11/Scrapyard | Discovered new exit (range 14) 92 | -11/Scrapyard | Entered Materials 93 | -10/Materials | Met a group of wandering Federalists 106 | -10/Materials | Discovered new exit (range 5) 202 | -10/Materials | Discovered new exit (range 9) 277 | -10/Materials | Discovered new exit (range 14) 316 | -10/Materials | Build established: Mutant 348 | -10/Materials | Discovered new exit (range 11) 421 | -10/Materials | Repaired Imp. Heat Sink? 461 | -10/Materials | Discovered new exit (range 11) 800 | -10/Materials | Core integrity fell below 50% 851 | -10/Materials | Repaired Particle Gun 1096 | -10/Materials | Released all parts (7) 1257 | -10/Materials | Entered Subcaves 1258 | -10/Subcaves | Continued accompanying wandering Federalists (5) 1258 | -10/Subcaves | Approached by a straggling Scientist 1755 | -10/Subcaves | Discovered new exit (range 14) 1852 | -10/Subcaves | Discovered new exit (range 10) 2095 | -10/Subcaves | Visited 4L-MR0's lab 2126 | -10/Subcaves | Found Flightbrick 2309 | -10/Subcaves | Disturbed a concealed Subdweller 2349 | -10/Subcaves | Core integrity fell below 20% 2354 | -10/Subcaves | Released all parts (5) 2438 | -10/Subcaves | Entered Recycling 2588 | -7/Recycling | Discovered new exit (range 16) 2781 | -7/Recycling | Learned Extension emergency access door positions 2783 | -7/Recycling | Scanned before Scraplab entrance 2789 | -7/Recycling | Entered Scraplab 2792 | -7/Recycling | Discovered new exit (range 2) 2842 | -7/Recycling | Learned location of Extension (-5) 2894 | -7/Recycling | Learned Extension security intel 2936 | -7/Recycling | Learned location of 2 exits from Archives 2970 | -7/Recycling | Learned location of 2 exits from Lower Caves 3009 | -7/Recycling | Learned location of Upper Caves (-5) 3031 | -7/Recycling | Learned 12 Factory zone layouts 3108 | -7/Recycling | Learned 2 Upper Caves zone layouts 3128 | -7/Recycling | Entered Scraptown 3128 | -7/Scraptown | System corruption cleaned by C-Scrubber 3129 | -7/Scraptown | Identified exit to Factory 3166 | -7/Scraptown | Heard Great Nut preacher, LISTEN AND RECITE! 3192 | -7/Scraptown | Visited UFD Registry 3192 | -7/Scraptown | Registered with UFD as "Smoothcoil" 3196 | -7/Scraptown | Visited Shadow of the Wyrm 3204 | -7/Scraptown | Visited The Evicted 3212 | -7/Scraptown | Visited Symbiants 3216 | -7/Scraptown | Visited Awakened 3225 | -7/Scraptown | Visited Cyclists 3229 | -7/Scraptown | Entered Cyclist Reading Room 3238 | -7/Scraptown | Visited TADAMA 3244 | -7/Scraptown | Visited Supply Room 3260 | -7/Scraptown | Visited Curators Association 3274 | -7/Scraptown | Visited A0-MCA Data Center 3277 | -7/Scraptown | Given a B rating by A0-MCA 3286 | -7/Scraptown | Visited Derelict Rescue Squad 3371 | -7/Scraptown | Found A0-MCA's Component Scanner 3403 | -7/Scraptown | Visited Chapter 10 3417 | -7/Scraptown | Visited Supply Room 3443 | -7/Scraptown | Visited DA-N13 Charitable Foundation 3447 | -7/Scraptown | Found DCF Scrap (32 items) 3489 | -7/Scraptown | Visited Science Guys 3525 | -7/Scraptown | Visited Sword Containment 3536 | -7/Scraptown | Found Prototype Slashing Weapon 3536 | -7/Scraptown | Identified Companion Sword 3564 | -7/Scraptown | Visited LU-1G1's Boring Crew 3583 | -7/Scraptown | Visited Research Penetration Think Tank 3890 | -7/Scraptown | Met Optimus 3890 | -7/Scraptown | Accepted into 0bPrime 3953 | -7/Scraptown | Entered Factory 3953 | -5/Factory | Evolved 10 slots: Power x1, Propulsion x6, Utility x3 3954 | -5/Factory | Identified exit to Extension 3954 | -5/Factory | Attached Flightbrick, gained temporary slots: Utility x3 4084 | -5/Factory | Sucked down chute 4084 | -5/Factory | Entered Waste 4087 | -5/Waste | Spotted C-40 Crusher 4088 | -5/Waste | Spotted C-40 Crusher 4090 | -5/Waste | Spotted C-40 Crusher 4094 | -5/Waste | Spotted C-40 Crusher 4098 | -5/Waste | Spotted C-40 Crusher 4098 | -5/Waste | Spotted C-40 Crusher 4099 | -5/Waste | EMP discharged 4145 | -5/Waste | Discovered new exit (range 16) 4165 | -5/Waste | Entered Factory 4248 | -5/Factory | Allied Derelicts emerged from ambush trap array 4261 | -5/Factory | Repaired Shield Generator? 4341 | -5/Factory | Identified exit to Upper Caves 4403 | -5/Factory | Loaded intel: 6 repair station locations 4428 | -5/Factory | Central database locked down 4477 | -5/Factory | Learned location of Testing (-3) 4517 | -5/Factory | Loaded intel: 8 recycling unit locations 4537 | -5/Factory | Build established: Hacker-Sprinter 4636 | -5/Factory | Identified exit to Factory 4702 | -5/Factory | Learned location of Protoforge (-2) 4711 | -5/Factory | Learned Research scanalyzer intel 4764 | -5/Factory | Learned location of Armory (-4) 4765 | -5/Factory | Search patrols dispatched 4825 | -5/Factory | Learned 2 Upper Caves zone layouts 4825 | -5/Factory | Entered Extension 4921 | -5/Extension | P-70 Sage assimilated allied 0Q-97S(g) 5057 | -5/Extension | Rescued A7 5058 | -5/Extension | Attached CPS modules to A7. 5073 | -5/Extension | Rescued a captive Derelict 5076 | -5/Extension | Rescued a captive Derelict 5079 | -5/Extension | Spotted B-75 Beast 5134 | -5/Extension | Spotted B-75 Beast 5160 | -5/Extension | Rewired B-75 Beast 5176 | -5/Extension | Allies destroyed B-75 Beast 5185 | -5/Extension | Rescued a captive Derelict 5204 | -5/Extension | Lost 3 allies 5333 | -5/Extension | Rescued a captive Derelict 5334 | -5/Extension | Rescued a captive Derelict 5458 | -5/Extension | Learned location of 1 exit from Armory 5479 | -5/Extension | Discovered exit to Factory (range 10) 5480 | -5/Extension | Discovered new exit (range 6) 5481 | -5/Extension | Identified exit to Cetus 5511 | -5/Extension | Learned Armory security intel 5556 | -5/Extension | Learned location of 1 exit from Armory 5591 | -5/Extension | Learned location of 1 exit from Proximity Caves 5615 | -5/Extension | Learned Testing scanalyzer intel 5630 | -5/Extension | Learned Quarantine security intel 5653 | -5/Extension | Learned location of 1 exit from Research 5686 | -5/Extension | Learned Armory stockpile data 5702 | -5/Extension | Entered Cetus 5702 | -5/Cetus | Accompanied by 7 allies (A7) 5707 | -5/Cetus | Acquired a Cetus Manufacturing Module code from A7 5724 | -5/Cetus | Spotted Cetus Guard 5724 | -5/Cetus | Spotted Cetus Guard 5735 | -5/Cetus | Allies destroyed Cetus Guard 5736 | -5/Cetus | Spotted Cetus Guard 5736 | -5/Cetus | Spotted Cetus Guard 5742 | -5/Cetus | Allies destroyed Cetus Guard 5767 | -5/Cetus | Started Cetus Manufacturing Module 5777 | -5/Cetus | Escorted A7 to Cetus Mainframe 5792 | -5/Cetus | Manufactured an Enhanced Grunt 5817 | -5/Cetus | Manufactured an Enhanced Grunt 5842 | -5/Cetus | Manufactured an Enhanced Grunt 5867 | -5/Cetus | Manufactured an Enhanced Grunt 5892 | -5/Cetus | Manufactured an Enhanced Grunt 5912 | -5/Cetus | Discovered new exit (range 15) 5926 | -5/Cetus | Spotted Cetus Guard 5937 | -5/Cetus | Spotted Cetus Guard 5938 | -5/Cetus | Spotted Cetus Guard 5948 | -5/Cetus | Extracted ID and sensor layout for unrecognized location from A7's data core 5952 | -5/Cetus | Found Prototype Protection 5952 | -5/Cetus | Identified Med. Regenerative Plating 5969 | -5/Cetus | Identified exit to Archives 5990 | -5/Cetus | Lost 6 allies 6015 | -5/Cetus | Discovered exit to Factory (range 15) 6017 | -5/Cetus | Met Revision 17 6077 | -5/Cetus | Entered Archives 6077 | -5/Archives | Accompanied by 6 allies 6078 | -5/Archives | Identified exit to Hub_04(d) 6085 | -5/Archives | Build established: Commander-Sprinter 6136 | -5/Archives | Lost 3 allies 6146 | -5/Archives | Discovered exit to Factory (range 14) 6216 | -5/Archives | Entered Hub_04(d) 6216 | -5/Hub_04(d) | Accompanied by 3 allies 6227 | -5/Hub_04(d) | Discovered exit to Factory (range 15) 6304 | -5/Hub_04(d) | Network Hub disabled 6334 | -5/Hub_04(d) | Spotted Lightning 6334 | -5/Hub_04(d) | Spotted Lightning 6335 | -5/Hub_04(d) | Spotted Lightning 6339 | -5/Hub_04(d) | Entered Factory 6339 | -4/Factory | Evolved 2 slots: Utility x2 6340 | -4/Factory | Identified exit to Upper Caves 6353 | -4/Factory | Loaded intel: 8 recycling unit locations 6400 | -4/Factory | Spotted B-86 Titan 6407 | -4/Factory | Discovered new exit (range 15) 6413 | -4/Factory | Identified exit to Armory 6533 | -4/Factory | Scrapoid reinforcements arrived 6563 | -4/Factory | Learned Research security intel 6596 | -4/Factory | Lost 4 allies 6607 | -4/Factory | Learned Testing emergency access door positions 6608 | -4/Factory | Allied Derelicts emerged from ambush trap array 6641 | -4/Factory | Learned Research recycling unit intel 6664 | -4/Factory | Learned location of 1 exit from Armory 6676 | -4/Factory | Learned Quarantine garrison access intel 6677 | -4/Factory | Learned Quarantine stockpile data 6680 | -4/Factory | Learned 2 Upper Caves zone layouts 6690 | -4/Factory | Learned Research garrison access intel 6712 | -4/Factory | Learned Testing security intel 6773 | -4/Factory | Discovered new exit (range 13) 6802 | -4/Factory | Manually triggered Chute Trap 6802 | -4/Factory | Sucked down chute 6802 | -4/Factory | Entered Waste 6803 | -4/Waste | Spotted C-40 Crusher 6805 | -4/Waste | Spotted C-40 Crusher 6813 | -4/Waste | Spotted C-40 Crusher 6817 | -4/Waste | EMP discharged 6817 | -4/Waste | System corruption reached 10% 6820 | -4/Waste | Spotted C-40 Crusher 6820 | -4/Waste | Spotted C-40 Crusher 6824 | -4/Waste | Spotted C-40 Crusher 6825 | -4/Waste | Discovered new exit (range 10) 6828 | -4/Waste | Entered Factory 6839 | -4/Factory | Spotted B-86 Titan 6864 | -4/Factory | Discovered exit to Upper Caves (range 6) 6924 | -4/Factory | Discovered new exit (range 14) 6961 | -4/Factory | Discovered new exit (range 5) 6962 | -4/Factory | Identified exit to Research 7052 | -4/Factory | Fabricated Imp. Q-thruster? 7084 | -4/Factory | Loaded intel: 8 recycling unit locations 7183 | -4/Factory | Build established: Hacker-Scout 7229 | -4/Factory | Found Prototype Processor 7229 | -4/Factory | Identified Exp. Terrain Scan Processor 7252 | -4/Factory | Crushed by falling debris 7363 | -4/Factory | Entered Armory 7364 | -4/Armory | Identified exit to Lab 7406 | -4/Armory | Scraphulk reinforcements arrived 7493 | -4/Armory | Scraphulk reinforcements arrived? 7542 | -4/Armory | Learned location of Quarantine (-2) 7674 | -4/Armory | Found Fusion Bomb Launcher 7715 | -4/Armory | Spotted B-86 Titan 7740 | -4/Armory | Energy Cycler disabled 7750 | -4/Armory | Learned Factory stockpile data 7808 | -4/Armory | Entered Lab 7811 | -4/Lab | Discovered exit to Research (range 9) 7814 | -4/Lab | Hidden lab's door opened automatically 7814 | -4/Lab | Sensor layout match revealed 7815 | -4/Lab | Gained access to the hidden lab's interior 8065 | -4/Lab | Found Alien Artifact 8065 | -4/Lab | Identified Integrated Reactor 8065 | -4/Lab | Installed Integrated Reactor, increased core energy generation (+10) 8074 | -4/Lab | Found Alien Artifact 8082 | -4/Lab | Found Alien Artifact 8094 | -4/Lab | Found Prototype Energy Gun 8094 | -4/Lab | Identified Hyp. EM Gauss Rifle 8098 | -4/Lab | Found Prototype Hackware 8112 | -4/Lab | Found Alien Artifact 8149 | -4/Lab | Identified Core Reset Matrix 8149 | -4/Lab | Identified Transdimensional Reconstructor 8149 | -4/Lab | Identified Core Expander 8149 | -4/Lab | Used Core Reset Matrix 8154 | -4/Lab | Discovered exit to Research (range 11) 8158 | -4/Lab | Identified Quantum Router 8161 | -4/Lab | Installed Core Expander, added new Utility slot 8170 | -4/Lab | Entered Research 8170 | -3/Research | Evolved 2 slots: Utility x2 8212 | -3/Research | Identified exit to Testing 8334 | -3/Research | Found Exp. Signal Interpreter 8347 | -3/Research | Loaded intel: 5 recycling unit locations 8370 | -3/Research | Revision forces began assault on 0b10 8394 | -3/Research | Repaired Enh. Fission Core 8461 | -3/Research | Lost 3 parts (2p1n) 8478 | -3/Research | Scraphulk reinforcements arrived? 8524 | -3/Research | Met up with Revision 17++ 8530 | -3/Research | Learned location of Quarantine (-2) 8580 | -3/Research | Identified exit to Research 8622 | -3/Research | Learned 8 Access zone layouts 8648 | -3/Research | Build established: Hacker-Ninja 8653 | -3/Research | Loaded intel: 93 trap records 8681 | -3/Research | Learned Testing trap positions 8747 | -3/Research | Spotted B-86 Titan 8763 | -3/Research | Learned location of 1 exit from Testing 8777 | -3/Research | Lost 3 parts (1p2n) 8823 | -3/Research | Repaired Field Propulsion Array 8870 | -3/Research | Research terminal network offline 8911 | -3/Research | Entered Testing 8911 | -3/Testing | Accompanied by 1 ally 8913 | -3/Testing | Loaded intel: 23 trap records 8973 | -3/Testing | Found Null Cannon 9068 | -3/Testing | Repaired Cld. Field Propulsion Drive 9116 | -3/Testing | Entered Research 9116 | -2/Research | Evolved 2 slots: Utility x2 9117 | -2/Research | Identified exit to Quarantine 9225 | -2/Research | Loaded intel: 5 recycling unit locations 9228 | -2/Research | Spotted B-90 Cyclops 9248 | -2/Research | Entered Quarantine 9249 | -2/Quarantine | Detected hypermatrix surge 9249 | -2/Quarantine | Sensed 11 artifacts in vicinity 9291 | -2/Quarantine | Found Subatomic Replicator 9313 | -2/Quarantine | Found Exp. Hacking Suite 9321 | -2/Quarantine | Met incapacitated Sigix Warrior 9321 | -2/Quarantine | Lockdown squad dispatched 9322 | -2/Quarantine | Acquired the access code to the Sigix quarantine chamber 9322 | -2/Quarantine | Unlocked Sigix quarantine chamber 9327 | -2/Quarantine | Found Sigix Containment Pod 9409 | -2/Quarantine | Warped through subspace 9463 | -2/Quarantine | Cryocooling Duct disabled 9478 | -2/Quarantine | Ambient heat levels rising (+20) 9478 | -2/Quarantine | Non-combat units ordered to evacuate 9481 | -2/Quarantine | Cryocooling Duct disabled 9496 | -2/Quarantine | Ambient heat levels rising (+20) 9496 | -2/Quarantine | Combat units ordered to evacuate 9536 | -2/Quarantine | Identified exit to Section 7 9536 | -2/Quarantine | Identified exit to Access 9565 | -2/Quarantine | Found Hpw. Transdimensional Reconstructor 9570 | -2/Quarantine | Found Hpw. Transdimensional Reconstructor 9575 | -2/Quarantine | Found Dimensional Node Initializer 9596 | -2/Quarantine | Quarantine Guard activated 9612 | -2/Quarantine | Learned 12 Research zone layouts 9617 | -2/Quarantine | Spotted Fortress 9637 | -2/Quarantine | Discovered new exit (range 6) 9639 | -2/Quarantine | Identified exit to Protoforge 9733 | -2/Quarantine | Learned location of 1 exit from Research 9776 | -2/Quarantine | Learned Access garrison access intel 9788 | -2/Quarantine | Spotted Quarantine Guard 9788 | -2/Quarantine | Spotted Quarantine Guard 9788 | -2/Quarantine | Entered Section 7 9789 | -2/Section 7 | Detected hypermatrix surge 9789 | -2/Section 7 | Sensed 16 artifacts in vicinity 9802 | -2/Section 7 | Found Spacefold Activator 9832 | -2/Section 7 | Found Integrated Dissipator 9832 | -2/Section 7 | Installed Integrated Dissipator, increased core heat dissipation (+20) 9844 | -2/Section 7 | Discovered exit to Access (range 12) 9849 | -2/Section 7 | Spotted B-90 Cyclops 9853 | -2/Section 7 | Initialized slip node 9876 | -2/Section 7 | Spotted Alpha 7 9888 | -2/Section 7 | Spotted Executioner 9888 | -2/Section 7 | Spotted Executioner 9897 | -2/Section 7 | Spotted B-99 Colossus 9911 | -2/Section 7 | Found Integrated Dissipator 9911 | -2/Section 7 | Installed Integrated Dissipator, increased core heat dissipation (+20) 9922 | -2/Section 7 | Found LRC Inertial Stabilizer 9922 | -2/Section 7 | Installed LRC Inertial Stabilizer, increased mass support (+10) 9950 | -2/Section 7 | Spotted Executioner 9956 | -2/Section 7 | Integrated with Sigix Exoskeleton 9957 | -2/Section 7 | Sigix Warrior commented on Exoskeleton integration 9988 | -2/Section 7 | Spotted Executioner 9997 | -2/Section 7 | Destroyed Executioner 10018 | -2/Section 7 | Rewired Executioner 10020 | -2/Section 7 | Found Exp. Core Analyzer 10024 | -2/Section 7 | Spotted Striker 10024 | -2/Section 7 | Spotted Striker 10034 | -2/Section 7 | Allies destroyed Striker 10052 | -2/Section 7 | Allies destroyed Striker 10076 | -2/Section 7 | Spotted Striker 10076 | -2/Section 7 | Spotted Striker 10087 | -2/Section 7 | Allies destroyed Striker 10096 | -2/Section 7 | Allies destroyed Striker 10107 | -2/Section 7 | Found Sigix Shearcannon 10108 | -2/Section 7 | Warped through subspace to slip node 10123 | -2/Section 7 | Entered Access 10123 | -1/Access | Evolved 2 slots: Utility x2 10124 | -1/Access | Forged Quantum Companion 10125 | -1/Access | Loaded intel: 6 garrison access locations 10125 | -1/Access | Forged Prototype Slashing Weapon 10128 | -1/Access | Emitted hypermatrix ping 10133 | -1/Access | Assembled emerged from beneath the floor 10167 | -1/Access | Assembled emerged from beneath the floor 10217 | -1/Access | Assembled emerged from beneath the floor 10272 | -1/Access | Build established: Alien-Sigix 10286 | -1/Access | Destroyed 7 combat bots 10302 | -1/Access | Discovered new exit (range 18) 10303 | -1/Access | Assembled emerged from beneath the floor 10336 | -1/Access | Assembled emerged from beneath the floor 10407 | -1/Access | Entered Command 10412 | -1/Command | Emitted hypermatrix ping 10417 | -1/Command | Assembled emerged from beneath the floor 10425 | -1/Command | Disengaged cave seal 10425 | -1/Command | Assembled emerged from the dark tunnel 10441 | -1/Command | Assembled emerged from beneath the floor 10447 | -1/Command | Spotted B-99 Colossus 10488 | -1/Command | Assembled emerged from beneath the floor 10492 | -1/Command | Lost 9 allies 10519 | -1/Command | Scraphulk reinforcements arrived? 10526 | -1/Command | Assembled emerged from beneath the floor 10549 | -1/Command | Disengaged cave seal 10549 | -1/Command | Assembled emerged from the dark tunnel 10657 | -1/Command | First assault squad dispatched 10658 | -1/Command | Spotted M Guard 10659 | -1/Command | Spotted Combat Programmer 10659 | -1/Command | Spotted Combat Programmer 10672 | -1/Command | Spotted M Guard 10676 | -1/Command | Destroyed Combat Programmer 10680 | -1/Command | Destroyed Combat Programmer 10686 | -1/Command | Sigix Exoskeleton integrity reduced to 80% 10699 | -1/Command | Destroyed M Guard 10712 | -1/Command | Destroyed M Guard 10712 | -1/Command | All MAIN.C guards destroyed 10723 | -1/Command | Met MAIN.C 10731 | -1/Command | 0b10 Conduit disabled 10742 | -1/Command | Core integrity fell below 50% 10746 | -1/Command | Sigix Exoskeleton integrity reduced to 60% 10751 | -1/Command | MAIN.C's shell transforms into a squad of autonomous robots 10751 | -1/Command | Destroyed MAIN.C Shell 10751 | -1/Command | Spotted M Shell/Def 10751 | -1/Command | Spotted M Shell/Atk 10751 | -1/Command | Spotted M Shell/Def 10751 | -1/Command | Spotted M Shell/Atk 10751 | -1/Command | Spotted M Shell/Atk 10751 | -1/Command | Spotted M Shell/Def 10751 | -1/Command | Spotted M Shell/Atk 10751 | -1/Command | Spotted M Shell/Def 10753 | -1/Command | MAIN.C activated Command garrisons 10777 | -1/Command | Discovered new exit (range 17) 10811 | -1/Command | Sigix Exoskeleton integrity reduced to 40% 10836 | -1/Command | Core integrity fell below 20% 10847 | -1/Command | Destroyed MAIN.C 10849 | -1/Command | Discovered new exit (range 27) 10849 | -1/Command | Discovered new exit (range 150) 10849 | -1/Command | Extracted map data and part IDs from MAIN.C's data core 10857 | *** | Destroyed 0b10! Last Messages --------------- Y-72 Warden. 10839_ Knocked back. 10844_ Redirected attack with Superquantum Companion. 10845_ Knocked back. 10846_ Superquantum Companion surprise attacks Y-72 Warden. 10847_ MAIN.C: "I hope you know you're still going to DIE HERE WITH ME!" 10847_ MAIN.C destroyed. 10849_ EXIT=FOUND 10849_ Acquired data core, extracted map data and part IDs. 10850_ Penetrated by Slug. Superquantum Companion releases a shadow of itself that zips off towards Y-72 Warden. 10851_ Destroyed Hvy. Armor Plating. 10851_ Acquired 10 matter. 10852_ Y-72 Warden destroyed. 10852_ Spacefolded through Wall. Map ----- +----------------------------------------------------+ | """ #??????# # #?? | | """ #??????# # #?? | | #??????# + #?? | | #??????# ######## # #?? | | ##############+######## ## ## ## #?? | | #???# # ## ## ## #?? | | #???# # ## ## ## #?? | | #???# # ## ## ## #?? | | #???# # ## ## ## #?? | | ##???# # ## ## #########?? | | #????# # ## ## #?????????? | | #????# # ## ] ## #?????????? | | #????# # ## ## #?????????? | | ##???# # ## ## ##????????? | | #################+#### #####+## k=#????????? | | " #???#????? | | w "T ########## | | ##### ######## ##########+####### ########## | | ###### ######## ########## ### ########### | | ## ######## ########## ### ########### | | ## ######## ########## ### #### | | ## ######## ########## ### #### | | # #######+#################### #### | | # " #### ## ""#### | | # + ^ ## ""#### | | # ####"""" ## X #########k ""#### | | #########""""^ ## #########k T#### | | #########"""" ^ ############## ""#### | | #########""""^ ^ ############## ""#### | | ######### ^ #! ######### ""#### | | + + # ######### w #### | | ##############+####+### + #### | | ############# + #### #### | | ############# # #### #### | | ############# ####+#### #### | | ############# #### #### [ | | ############# + =%= | | ############# #### wR ! | | ############# = i #### i###+########### ### | | ############# #### # # # [ ### | | #""""="#==##########+##### # # ! "=%= ### | | #"""%%=+%[######### ^ # # # ### | | #"""%[%+==######### g i # ######### ### | | #"""%%%+[%######### !! # ######### ### | | #"""""=#=*######### # ] ## ! # ### | | #####=##![########" =# ## # ### | | ####!###==# # # ## # ### | | ### ####! + #!= ^ # ## # ### | | ## ##### # #== # ## # ### | | # ###### # # # ## # ### | +----------------------------------------------------+ Best States ------------- Heat Dissipation 167 Energy Generation 76 Energy Capacity 450 Matter Stores 300 Matter Capacity 300 Sight Range 22 Robot Scan Range 18 Terrain Scan Density 1010 ECM Strength 1 Jamming Range 16 Cloak Strength 3 Additional Mass Support 16 Corruption Block 20 Armor Coverage 225 Resistance: KI 50 Resistance: TH 50 Resistance: EX 50 Resistance: EM 50 Resistance: I 50 Resistance: S 50 Resistance: P 50 Utility Shielding 66 Melee Speed Boost 20 Evasion (%) 83 Core Analysis 8 Recoil Reduction 1 Offensive Hacking 34 Defensive Hacking 25 Authchip Count 1 Trap Extractor Capacity 8 Item Schematics ----------------- Imp. Terrain Scanner | -3/Research | Extracted Field Propulsion Array | -3/Research | Extracted Thermal Shield | -3/Research | Extracted Lgt. Particle Reactor | -3/Research | Hacked Adv. Thermal Shield | -3/Research | Extracted Adv. Hardlight Generator | -3/Research | Hacked Enh. Gamma Bomb Array | -2/Section 7 | Archive Robot Schematics ------------------ C-65 Expert | -2/Section 7 | Archive A-15 Conveyor | -2/Section 7 | Archive Fabricated ------------ Imp. Q-thruster | x1 | -4/Factory | Authchip Repaired ---------- Imp. Heat Sink | 52% | -10/Materials Particle Gun | 65% | -10/Materials Shield Generator | 60% | -5/Factory Enh. Fission Core | 23% | -3/Research Field Propulsion Array | 1% | -3/Research Cld. Field Propulsion Drive | 47% | -3/Testing Studied --------- Q-thruster | -3/Research | Hacked Alien Tech Used ----------------- Integrated Reactor Core Reset Matrix Core Expander Transdimensional Reconstructor Integrated Dissipator Dimensional Node Initializer Spacefold Activator LRC Inertial Stabilizer Sigix Exoskeleton Sigix Sheargun High-powered Transdimensional Reconstructor Subatomic Replicator Achievements -------------- Help And Harvest Challenges ------------ None Game ------ Seed RefineryAblativeShockpuncher Manual? 0 Play Time 03:30:44 Cumulative 852.8 hours Start 2026.01.06 @ 20:25:45 End 2026.01.07 @ 00:52:05 Sessions 3 Manual Loads 0 Difficulty Rogue Special Mode None Game No. 338 Rogue 338 Adventurer 0 Explorer 0 Win Type 3 Total 88 Types 44/6/16/7/6/1/1/3/0/4 Lore% 97 Gallery% 91 Achievement% 85 Wizard Run 0 Options --------- Layout 1 ASCII 0 Keyboard 0 Movement Numpad Keybinds 0 Fullscreen 1 Font 24/Smallcaps Map View 50x35 Zoom Use 0% Tactical HUD 1 Map Filters NONE Filters NONE Steam 1 RUN: dd790839-cfc9-4bdc-aad8-164692d50344